fUST/lending_fUST_20250122
["ID","MTS","AMOUNT","RATE_DAILY","PERIOD"]
[349935277,1737520242337,-500.0,0.00021917,3]
[349935278,1737520242346,-151.0,0.00021917,2]
[349935279,1737520242355,-500.0,0.00021917,3]
[349935280,1737520242365,-151.0,0.00021917,2]
[349935281,1737520242375,-151.0,0.00021917,2]
[349935282,1737520242384,-889.71,0.00021917,3]
[349935283,1737520242394,-500.0,0.00021917,3]
[349935284,1737520242403,-500.0,0.00021917,3]
[349935285,1737520242413,-500.0,0.00021917,3]
[349935286,1737520242422,-500.0,0.00021917,3]
[349935287,1737520242431,-500.0,0.00021917,3]
[349935288,1737520242440,-500.0,0.00021917,3]
[349935289,1737520242450,-500.0,0.00021917,3]
[349935290,1737520242459,-349.69815765,0.00021917,3]
[349935291,1737520242468,-500.0,0.00021917,3]
[349935292,1737520242478,-580.66,0.00021917,3]
[349935293,1737520242487,-1122.08,0.00021917,3]
[349935294,1737520242497,-500.0,0.00021917,3]
[349935295,1737520242507,-513.28912444,0.00021917,3]
[349935296,1737520242516,-500.0,0.00021917,3]
[349935297,1737520242526,-500.0,0.00021917,3]
[349935298,1737520242535,-787.32,0.00021917,3]
[349935299,1737520242546,-500.0,0.00021917,3]
[349935300,1737520242555,-500.0,0.00021917,3]
[349935301,1737520242564,-1063.98,0.00021917,3]
[349935302,1737520242574,-500.0,0.00021917,3]
[349935303,1737520242583,-151.0,0.00021917,2]
[349935304,1737520242593,-685.49,0.00021917,3]
[349935305,1737520242602,-502.09781699,0.00021917,3]
[349935306,1737520242611,-500.0,0.00021917,3]
[349935307,1737520242621,-500.0,0.00021917,3]
[349935308,1737520242630,-500.0,0.00021917,3]
[349935309,1737520242639,-500.0,0.00021917,3]
[349935310,1737520242648,-263.46942,0.00021917,2]
[349935311,1737520242658,-500.0,0.00021917,3]
[349935312,1737520242668,-500.0,0.00021917,3]
[349935313,1737520242677,-500.0,0.00021917,3]
[349935314,1737520242687,-505.9016128,0.00021917,3]
[349935315,1737520242696,-500.0,0.00021917,3]
[349935316,1737520242705,-503.11398391,0.00021917,3]
[349935317,1737520242715,-500.0,0.00021917,3]
[349935318,1737520242724,-587.51,0.00021917,3]
[349935319,1737520242734,-500.0,0.00021917,3]
[349935320,1737520242743,-151.0,0.00021917,2]
[349935321,1737520242752,-151.0,0.00021917,2]
[349935322,1737520242762,-151.0,0.00021917,2]
[349935323,1737520242771,-151.0,0.00021917,2]
[349935325,1737520242783,-151.0,0.00021917,2]
[349935327,1737520242794,-151.0,0.00021917,2]
[349935328,1737520242804,-151.0,0.00021917,2]
[349935329,1737520242814,-500.0,0.00021917,3]
[349935330,1737520242823,-659.88,0.00021917,3]
[349935331,1737520242834,-658.05,0.00021917,3]
[349935332,1737520242843,-930.53,0.00021917,3]
[349935333,1737520242852,-208.632417,0.00021917,2]
[349935334,1737520242862,-208.632417,0.00021917,2]
[349935335,1737520242872,-208.632417,0.00021917,2]
[349935337,1737520242882,-208.632417,0.00021917,2]
[349935340,1737520242961,-208.632417,0.00021917,2]
[349935341,1737520242979,-208.632417,0.00021917,2]
[349935342,1737520242988,-208.632417,0.00021917,2]
[349935343,1737520242998,-208.632417,0.00021917,2]
[349935344,1737520243008,-208.632417,0.00021917,2]
[349935345,1737520243018,-208.632417,0.00021917,2]
[349935346,1737520243027,-208.632417,0.00021917,2]
[349935347,1737520243037,-208.632417,0.00021917,2]
[349935349,1737520243047,-208.632417,0.00021917,2]
[349935350,1737520243058,-208.632417,0.00021917,2]
[349935352,1737520243070,-500.0,0.00021917,3]
[349935354,1737520243079,-500.0,0.00021917,3]
[349935355,1737520243089,-500.0,0.00021917,3]
[349935356,1737520243099,-512.91866977,0.00021917,3]
[349935357,1737520243108,-500.0,0.00021917,3]
[349935358,1737520243118,-500.0,0.00021917,3]
[349935359,1737520243128,-500.0,0.00021917,3]
[349935360,1737520243138,-500.0,0.00021917,3]
[349935361,1737520243149,-500.0,0.00021917,3]
[349935362,1737520243158,-1048.91,0.00021917,3]
[349935363,1737520243168,-500.0,0.00021917,3]
[349935364,1737520243178,-500.0,0.00021917,3]
[349935365,1737520243188,-902.58,0.00021917,3]
[349935366,1737520243198,-500.0,0.00021917,3]
[349935367,1737520243208,-2163.62,0.00021917,3]
[349935368,1737520243218,-500.0,0.00021917,3]
[349935369,1737520243228,-500.0,0.00021917,3]
[349935370,1737520243237,-500.0,0.00021917,3]
[349935371,1737520243248,-500.0,0.00021917,3]
[349935372,1737520243258,-928.36,0.00021917,3]
[349935373,1737520243267,-1605.61,0.00021917,3]
[349935374,1737520243278,-500.0,0.00021917,3]
[349935375,1737520243287,-500.0,0.00021917,3]
[349935376,1737520243297,-500.0,0.00021917,3]
[349935377,1737520243307,-500.0,0.00021917,3]
[349935378,1737520243317,-744.63,0.00021917,3]
[349935379,1737520243327,-742.85,0.00021917,3]
[349935380,1737520243337,-7019.63479063,0.00021917,3]
[349935381,1737520243357,-1016.04152899,0.00021917,3]
[349935394,1737520243766,-436.17718357,0.00021917,3]
[349935395,1737520243777,-16771.70923665,0.00021917,3]
[349935558,1737520298034,163.472485,0.00013973,2]
[349935560,1737520867704,150.0,0.00019817,2]
[349935563,1737520994346,2118.42307185,0.0002,2]
[349935564,1737521185989,48082.42352057,0.0002,2]
[349935565,1737521186016,100000.0,0.0002,2]
[349935566,1737521222256,45182.90450924,0.0002,120]
[349935567,1737521408622,163.529008,0.00013973,2]
[349935937,1737521440561,-300.0,0.00019999,2]
[349935938,1737521440571,-103926.80808402,0.0002,2]
[349935940,1737521440582,-3711.32276358,0.0002,2]
[349936270,1737521446396,-1688.22487523,0.0002,2]
[349936272,1737521446406,-1382.1275486,0.00020733,2]
[349936274,1737521446415,-150.05117716,0.00020816,2]
[349936276,1737521446425,-206.26314718,0.000209,2]
[349936278,1737521446435,-236.657,0.0002095,2]
[349936280,1737521446444,-206.26314694,0.00021038,2]
[349936282,1737521446453,-764.29798761,0.00021153,2]
[349936284,1737521446465,-206.26314694,0.00021176,2]
[349936286,1737521446478,-206.26314694,0.00021314,2]
[349936288,1737521446490,-300.0,0.000214,9]
[349936290,1737521446499,-206.26314694,0.00021452,2]
[349936292,1737521446509,-526.19,0.000215,2]
[349936294,1737521446520,-206.26314694,0.0002159,2]
[349936296,1737521446529,-764.29798761,0.00021674,2]
[349936298,1737521446538,-206.26314694,0.00021728,3]
[349936300,1737521446548,-420.0,0.00021777,2]
[349936302,1737521446558,-6204.16440295,0.00021798,2]
[349936304,1737521446567,-206.26314694,0.00021866,3]
[349936306,1737521446576,-605.23899398,0.00021894,2]
[349936308,1737521446586,-160.751503,0.000219,15]
[349936310,1737521446595,-395.0,0.0002191,2]
[349936312,1737521446604,-158.79,0.00021916,2]
[349936314,1737521446613,-500.0,0.00021916,2]
[349936316,1737521446623,-500.0,0.00021916,2]
[349936318,1737521446633,-5487.70389386,0.00021917,5]
[349936320,1737521446642,-733.48692427,0.00021917,5]
[349936322,1737521446651,-610.62019318,0.00021917,3]
[349936324,1737521446660,-18611.22246551,0.00021917,3]
[349936327,1737521446680,-5250.15447795,0.00021917,3]
[349937278,1737522354743,163.578549,0.00013973,2]
[349937338,1737522637707,-270.75652168,0.000189,2]
[349937340,1737522637717,-265.78,0.0002082,2]
[349937342,1737522637727,-300.0,0.00020899,2]
[349937344,1737522637737,-9009.06475607,0.000209,2]
[349937347,1737522637750,-8538.16535613,0.000209,2]
[349937348,1737522637759,-300.0,0.000214,9]
[349937350,1737522637770,-2993.0,0.00021653,2]
[349937352,1737522637780,-789.11059233,0.00021716,2]
[349937354,1737522637789,-547.86,0.000218,2]
[349937356,1737522637799,-353.8915511,0.000218,2]
[349937357,1737522637809,-353.8915511,0.000218,2]
[349937359,1737522637819,-13304.44717611,0.00021816,3]
[349937442,1737522638690,-9087.97572499,0.00021816,3]
[349937443,1737522638699,-163.40667111,0.00021816,2]
[349937444,1737522638709,-158.78367987,0.00021817,2]
[349937445,1737522638718,-195.0,0.000219,2]
[349937446,1737522638727,-151.0,0.000219,3]
[349937447,1737522638737,-521.69336132,0.000219,3]
[349937448,1737522638746,-500.0,0.00021915,2]
[349937449,1737522638756,-500.0,0.00021915,2]
[349937450,1737522638765,-408.92982807,0.00021915,2]
[349937451,1737522638774,-500.0,0.00021915,2]
[349937452,1737522638784,-500.0,0.00021915,2]
[349937453,1737522638793,-7092.30464338,0.00021916,5]
[349937454,1737522638802,-820.17478951,0.00021916,5]
[349937455,1737522638812,-655252.97898373,0.00021916,7]
[349937456,1737522638820,-191.753,0.00021916,2]
[349937457,1737522638829,-468.00065256,0.00021916,2]
[349937458,1737522638839,-2022.90286852,0.00021917,3]
[349937460,1737522638852,-500.0,0.00021917,3]
[349937461,1737522638862,-500.0,0.00021917,3]
[349937463,1737522638871,-504.75906601,0.00021917,3]
[349937465,1737522638881,-384.0168815,0.00021917,3]
[349937467,1737522638891,-500.0,0.00021917,3]
[349937469,1737522638900,-500.0,0.00021917,3]
[349937471,1737522638909,-500.0,0.00021917,3]
[349937473,1737522638919,-666.04,0.00021917,3]
[349937475,1737522638928,-852.64,0.00021917,3]
[349937477,1737522638938,-500.0,0.00021917,3]
[349937479,1737522638947,-500.0,0.00021917,3]
[349937481,1737522638957,-500.0,0.00021917,3]
[349937483,1737522638967,-345.96451898,0.00021917,3]
[349937485,1737522638976,-500.0,0.00021917,3]
[349937487,1737522638985,-543.88713419,0.00021917,3]
[349937489,1737522638995,-500.0,0.00021917,3]
[349937491,1737522639004,-500.0,0.00021917,3]
[349937493,1737522639014,-500.0,0.00021917,3]
[349937495,1737522639023,-500.0,0.00021917,3]
[349937497,1737522639033,-500.0,0.00021917,3]
[349937498,1737522639042,-500.0,0.00021917,3]
[349937500,1737522639051,-630.63,0.00021917,3]
[349937502,1737522639061,-500.0,0.00021917,3]
[349937504,1737522639070,-717.29,0.00021917,3]
[349937506,1737522639079,-528.04,0.00021917,3]
[349937508,1737522639089,-500.0,0.00021917,3]
[349937510,1737522639099,-500.0,0.00021917,3]
[349937512,1737522639109,-500.0,0.00021917,3]
[349937514,1737522639119,-500.0,0.00021917,3]
[349937516,1737522639129,-541.29881703,0.00021917,3]
[349937518,1737522639137,-500.0,0.00021917,3]
[349937519,1737522639147,-500.0,0.00021917,3]
[349937521,1737522639156,-404.07877056,0.00021917,3]
[349937523,1737522639166,-500.0,0.00021917,3]
[349937524,1737522639176,-500.0,0.00021917,3]
[349937526,1737522639186,-500.0,0.00021917,3]
[349937528,1737522639196,-500.0,0.00021917,3]
[349937530,1737522639206,-500.0,0.00021917,3]
[349937531,1737522639215,-500.0,0.00021917,3]
[349937533,1737522639225,-500.0,0.00021917,3]
[349937535,1737522639234,-500.0,0.00021917,3]
[349937537,1737522639244,-926.68,0.00021917,3]
[349937539,1737522639253,-500.0,0.00021917,3]
[349937541,1737522639262,-500.0,0.00021917,3]
[349937543,1737522639272,-500.0,0.00021917,3]
[349937545,1737522639281,-198.92680558,0.00021917,3]
[349937547,1737522639290,-500.0,0.00021917,3]
[349937549,1737522639300,-500.0,0.00021917,3]
[349937551,1737522639311,-500.0,0.00021917,3]
[349937553,1737522639320,-500.0,0.00021917,3]
[349937555,1737522639330,-763.4829118,0.00021917,4]
[349937557,1737522639339,-300.684998,0.00021917,3]
[349937559,1737522639349,-500.0,0.00021917,3]
[349937561,1737522639358,-500.0,0.00021917,3]
[349937563,1737522639367,-500.0,0.00021917,3]
[349937565,1737522639376,-500.0,0.00021917,3]
[349937567,1737522639386,-763.48,0.00021917,3]
[349937569,1737522639395,-500.0,0.00021917,3]
[349937571,1737522639405,-511.20860193,0.00021917,3]
[349937573,1737522639415,-500.0,0.00021917,3]
[349937575,1737522639424,-566.44,0.00021917,3]
[349937586,1737522639523,-506.55150753,0.00021917,3]
[349937588,1737522639533,-500.0,0.00021917,3]
[349937590,1737522639543,-500.0,0.00021917,3]
[349937592,1737522639552,-500.0,0.00021917,3]
[349937595,1737522639563,-500.0,0.00021917,3]
[349937596,1737522639572,-500.0,0.00021917,3]
[349937598,1737522639582,-500.0,0.00021917,3]
[349937601,1737522639591,-500.0,0.00021917,3]
[349937602,1737522639600,-500.0,0.00021917,3]
[349937604,1737522639611,-500.0,0.00021917,3]
[349937606,1737522639620,-500.0,0.00021917,3]
[349937608,1737522639630,-535.06,0.00021917,3]
[349937610,1737522639639,-500.0,0.00021917,3]
[349937612,1737522639648,-500.0,0.00021917,3]
[349937614,1737522639658,-500.0,0.00021917,3]
[349937616,1737522639667,-256.77456699,0.00021917,3]
[349937618,1737522639677,-500.0,0.00021917,3]
[349937620,1737522639686,-500.0,0.00021917,3]
[349937622,1737522639695,-500.0,0.00021917,3]
[349937624,1737522639705,-638.34,0.00021917,3]
[349937626,1737522639714,-502.3376677,0.00021917,3]
[349937628,1737522639724,-500.0,0.00021917,3]
[349937630,1737522639733,-500.0,0.00021917,3]
[349937632,1737522639743,-500.0,0.00021917,3]
[349937634,1737522639753,-216.7515932,0.00021917,3]
[349937636,1737522639764,-629.84501141,0.00021917,3]
[349937638,1737522639774,-500.0,0.00021917,3]
[349937641,1737522639784,-500.0,0.00021917,3]
[349937642,1737522639794,-500.0,0.00021917,3]
[349937643,1737522639804,-593.22046332,0.00021917,3]
[349937644,1737522639815,-882.26,0.00021917,3]
[349937645,1737522639825,-503.81160113,0.00021917,3]
[349937646,1737522639835,-500.0,0.00021917,3]
[349937647,1737522639847,-500.0,0.00021917,3]
[349937648,1737522639859,-500.0,0.00021917,3]
[349937649,1737522639868,-500.0,0.00021917,3]
[349937650,1737522639878,-500.0,0.00021917,3]
[349937651,1737522639888,-1091.1,0.00021917,3]
[349937652,1737522639898,-500.0,0.00021917,3]
[349937654,1737522639907,-500.0,0.00021917,3]
[349937656,1737522639917,-649.55,0.00021917,3]
[349937658,1737522639928,-501.69798411,0.00021917,3]
[349937660,1737522639938,-500.0,0.00021917,3]
[349937662,1737522639948,-500.0,0.00021917,3]
[349937664,1737522639958,-500.0,0.00021917,3]
[349937666,1737522639967,-200.0,0.00021917,3]
[349937668,1737522639977,-500.0,0.00021917,3]
[349937670,1737522639987,-505.17937946,0.00021917,3]
[349937672,1737522639996,-500.0,0.00021917,3]
[349937674,1737522640006,-296.43644015,0.00021917,2]
[349937676,1737522640017,-500.0,0.00021917,3]
[349937678,1737522640026,-500.0,0.00021917,3]
[349937680,1737522640036,-505.25518868,0.00021917,3]
[349937682,1737522640045,-501.88726778,0.00021917,3]
[349937684,1737522640055,-500.0,0.00021917,3]
[349937686,1737522640064,-500.0,0.00021917,3]
[349937688,1737522640073,-500.0,0.00021917,3]
[349937690,1737522640082,-500.0,0.00021917,3]
[349937692,1737522640091,-500.0,0.00021917,3]
[349937694,1737522640101,-500.0,0.00021917,3]
[349937696,1737522640110,-500.0,0.00021917,3]
[349937698,1737522640119,-500.0,0.00021917,3]
[349937700,1737522640130,-551.09,0.00021917,3]
[349937702,1737522640139,-500.0,0.00021917,3]
[349937704,1737522640149,-500.0,0.00021917,3]
[349937706,1737522640159,-500.0,0.00021917,3]
[349937708,1737522640168,-500.0,0.00021917,3]
[349937710,1737522640178,-500.0,0.00021917,3]
[349937712,1737522640191,-700.49,0.00021917,3]
[349937714,1737522640200,-500.0,0.00021917,3]
[349937716,1737522640210,-500.0,0.00021917,3]
[349937718,1737522640220,-1397.0,0.00021917,3]
[349937721,1737522640229,-500.0,0.00021917,3]
[349937723,1737522640239,-500.0,0.00021917,3]
[349937725,1737522640248,-500.0,0.00021917,3]
[349937727,1737522640258,-399.74870446,0.00021917,3]
[349937729,1737522640267,-783.27,0.00021917,3]
[349937731,1737522640277,-951.62,0.00021917,3]
[349937733,1737522640286,-500.0,0.00021917,3]
[349937735,1737522640296,-500.0,0.00021917,3]
[349937737,1737522640305,-500.0,0.00021917,3]
[349937739,1737522640315,-500.0,0.00021917,3]
[349937741,1737522640324,-500.0,0.00021917,3]
[349937743,1737522640333,-500.0,0.00021917,3]
[349937745,1737522640343,-313.73624579,0.00021917,3]
[349937747,1737522640354,-500.0,0.00021917,3]
[349937749,1737522640363,-500.0,0.00021917,3]
[349937751,1737522640372,-204.17810392,0.00021917,3]
[349937753,1737522640382,-502.62,0.00021917,3]
[349937755,1737522640392,-500.0,0.00021917,3]
[349937757,1737522640401,-500.0,0.00021917,3]
[349937759,1737522640410,-500.0,0.00021917,3]
[349937761,1737522640420,-500.0,0.00021917,3]
[349937763,1737522640430,-500.0,0.00021917,3]
[349937765,1737522640439,-2620.52,0.00021917,3]
[349937767,1737522640448,-500.0,0.00021917,3]
[349937769,1737522640458,-522.20147416,0.00021917,3]
[349937771,1737522640467,-500.0,0.00021917,3]
[349937773,1737522640477,-151.0,0.00021917,2]
[349937775,1737522640486,-211.338786,0.00021917,2]
[349937777,1737522640495,-500.0,0.00021917,3]
[349937779,1737522640504,-500.0,0.00021917,3]
[349937780,1737522640514,-500.0,0.00021917,3]
[349937783,1737522640524,-500.0,0.00021917,3]
[349937785,1737522640533,-500.0,0.00021917,3]
[349937787,1737522640542,-895.22,0.00021917,3]
[349937788,1737522640552,-500.0,0.00021917,3]
[349937791,1737522640561,-562.8126885,0.00021917,3]
[349937792,1737522640571,-859.69,0.00021917,3]
[349937795,1737522640581,-500.0,0.00021917,3]
[349937797,1737522640590,-500.0,0.00021917,3]
[349937798,1737522640599,-507.22383536,0.00021917,3]
[349937801,1737522640611,-1368.61,0.00021917,3]
[349937803,1737522640620,-500.0,0.00021917,3]
[349937805,1737522640628,-500.0,0.00021917,3]
[349937807,1737522640637,-500.0,0.00021917,3]
[349937809,1737522640646,-548.75477396,0.00021917,3]
[349937811,1737522640656,-500.0,0.00021917,3]
[349937813,1737522640665,-500.0,0.00021917,3]
[349937815,1737522640675,-151.0,0.00021917,2]
[349937817,1737522640683,-151.0,0.00021917,2]
[349937819,1737522640692,-1432.18,0.00021917,3]
[349937821,1737522640702,-151.0,0.00021917,2]
[349937823,1737522640710,-151.0,0.00021917,2]
[349937825,1737522640720,-151.0,0.00021917,2]
[349937827,1737522640729,-151.0,0.00021917,2]
[349937829,1737522640738,-606.42,0.00021917,3]
[349937831,1737522640747,-500.0,0.00021917,3]
[349937833,1737522640756,-500.0,0.00021917,3]
[349937835,1737522640766,-500.0,0.00021917,3]
[349937837,1737522640775,-500.0,0.00021917,3]
[349937839,1737522640784,-500.0,0.00021917,3]
[349937841,1737522640793,-928.6,0.00021917,3]
[349937843,1737522640802,-500.0,0.00021917,3]
[349937845,1737522640811,-533.38,0.00021917,3]
[349937847,1737522640819,-585.75,0.00021917,3]
[349937849,1737522640828,-151.0,0.00021917,2]
[349937851,1737522640837,-151.0,0.00021917,2]
[349937853,1737522640850,-500.0,0.00021917,3]
[349937855,1737522640860,-812.47,0.00021917,3]
[349937857,1737522640869,-500.0,0.00021917,3]
[349937859,1737522640878,-500.0,0.00021917,3]
[349937861,1737522640888,-298.00897494,0.00021917,3]
[349937863,1737522640898,-500.0,0.00021917,3]
[349937865,1737522640907,-1303.23,0.00021917,3]
[349937867,1737522640916,-500.0,0.00021917,3]
[349937868,1737522640926,-151.0,0.00021917,2]
[349937870,1737522640935,-151.0,0.00021917,2]
[349937872,1737522640945,-151.0,0.00021917,2]
[349937874,1737522640954,-151.0,0.00021917,2]
[349937876,1737522640963,-151.0,0.00021917,2]
[349937878,1737522640973,-151.0,0.00021917,2]
[349937880,1737522640982,-151.0,0.00021917,2]
[349937883,1737522640992,-194.794506,0.00021917,2]
[349937884,1737522641072,-500.0,0.00021917,3]
[349937885,1737522641082,-964.39,0.00021917,3]
[349937886,1737522641091,-1410.5,0.00021917,3]
[349937887,1737522641100,-500.0,0.00021917,3]
[349937888,1737522641112,-500.0,0.00021917,3]
[349937889,1737522641121,-500.0,0.00021917,3]
[349937890,1737522641131,-500.0,0.00021917,3]
[349937891,1737522641140,-799.23,0.00021917,3]
[349937892,1737522641150,-500.0,0.00021917,3]
[349937893,1737522641159,-500.0,0.00021917,3]
[349937895,1737522641175,-764.42,0.00021917,3]
[349937897,1737522641185,-551.37,0.00021917,3]
[349937899,1737522641194,-1030.09,0.00021917,3]
[349937901,1737522641203,-2744.4,0.00021917,3]
[349937902,1737522641213,-500.0,0.00021917,3]
[349937903,1737522641222,-717.65,0.00021917,3]
[349937904,1737522641231,-500.0,0.00021917,3]
[349937905,1737522641240,-500.0,0.00021917,3]
[349937906,1737522641250,-2873.07,0.00021917,3]
[349937907,1737522641266,-500.0,0.00021917,3]
[349937908,1737522641275,-500.0,0.00021917,3]
[349937909,1737522641284,-564.94,0.00021917,3]
[349937910,1737522641293,-151.0,0.00021917,2]
[349937911,1737522641302,-151.0,0.00021917,2]
[349937912,1737522641312,-151.0,0.00021917,2]
[349937913,1737522641321,-500.0,0.00021917,3]
[349937914,1737522641330,-507.02760448,0.00021917,3]
[349937915,1737522641340,-926.76,0.00021917,3]
[349937916,1737522641349,-500.0,0.00021917,3]
[349937917,1737522641360,-500.0,0.00021917,3]
[349937918,1737522641370,-500.0,0.00021917,3]
[349937919,1737522641379,-500.0,0.00021917,3]
[349937920,1737522641394,-151.0,0.00021917,2]
[349937921,1737522641403,-151.0,0.00021917,2]
[349937922,1737522641414,-151.0,0.00021917,2]
[349937923,1737522641424,-2665.98,0.00021917,3]
[349937924,1737522641433,-1471.16,0.00021917,3]
[349937925,1737522641443,-500.0,0.00021917,3]
[349937926,1737522641452,-500.0,0.00021917,3]
[349937927,1737522641462,-500.0,0.00021917,3]
[349937928,1737522641472,-500.0,0.00021917,3]
[349937929,1737522641481,-10732.32,0.00021917,3]
[349937930,1737522641490,-500.0,0.00021917,3]
[349937931,1737522641499,-1089.15,0.00021917,3]
[349937932,1737522641508,-500.0,0.00021917,3]
[349937933,1737522641517,-1315.55,0.00021917,3]
[349937934,1737522641527,-500.0,0.00021917,3]
[349937935,1737522641538,-500.0,0.00021917,3]
[349937936,1737522641551,-500.0,0.00021917,3]
[349937937,1737522641561,-500.0,0.00021917,3]
[349937938,1737522641570,-2470.27,0.00021917,3]
[349937939,1737522641579,-500.0,0.00021917,3]
[349937940,1737522641589,-981.23,0.00021917,3]
[349937941,1737522641598,-500.0,0.00021917,3]
[349937942,1737522641609,-3920.54,0.00021917,3]
[349937943,1737522641618,-151.0,0.00021917,2]
[349937944,1737522641627,-151.0,0.00021917,2]
[349937945,1737522641637,-151.0,0.00021917,2]
[349937946,1737522641646,-151.0,0.00021917,2]
[349937947,1737522641655,-157.37713,0.00021917,2]
[349937948,1737522641664,-500.0,0.00021917,3]
[349937949,1737522641674,-1911.55,0.00021917,3]
[349937950,1737522641684,-500.0,0.00021917,3]
[349937951,1737522641694,-1155.53,0.00021917,3]
[349937952,1737522641703,-500.0,0.00021917,3]
[349937953,1737522641712,-500.0,0.00021917,3]
[349937954,1737522641721,-1936.82,0.00021917,3]
[349937955,1737522641730,-500.0,0.00021917,3]
[349937956,1737522641740,-165.84844868,0.00021917,3]
[349937957,1737522641749,-1773.31,0.00021917,2]
[349937958,1737522641759,-500.0,0.00021917,3]
[349937959,1737522641768,-500.0,0.00021917,3]
[349937960,1737522641777,-48646.51,0.00021917,3]
[349937961,1737522641787,-500.0,0.00021917,3]
[349937962,1737522641796,-3199.08,0.00021917,3]
[349937963,1737522641805,-500.0,0.00021917,3]
[349937964,1737522641814,-11558.89,0.00021917,3]
[349937965,1737522641823,-500.0,0.00021917,3]
[349937966,1737522641832,-500.0,0.00021917,3]
[349937967,1737522641841,-500.0,0.00021917,3]
[349937968,1737522641852,-500.0,0.00021917,3]
[349937969,1737522641862,-500.0,0.00021917,3]
[349937970,1737522641871,-2997.51,0.00021917,3]
[349937971,1737522641880,-500.0,0.00021917,3]
[349937972,1737522641890,-503.69743066,0.00021917,3]
[349937973,1737522641899,-500.0,0.00021917,3]
[349937974,1737522641908,-500.62389333,0.00021917,3]
[349937975,1737522641918,-501.64547528,0.00021917,3]
[349937976,1737522641927,-503.56231021,0.00021917,3]
[349937977,1737522641937,-715.59,0.00021917,3]
[349937978,1737522641946,-935.44,0.00021917,3]
[349937979,1737522641955,-508.69,0.00021917,3]
[349937980,1737522641964,-500.0,0.00021917,3]
[349937981,1737522641973,-500.0,0.00021917,3]
[349937982,1737522641982,-500.0,0.00021917,3]
[349937983,1737522641991,-1059.79,0.00021917,3]
[349937984,1737522642002,-500.0,0.00021917,3]
[349937985,1737522642012,-501.38868866,0.00021917,3]
[349937986,1737522642021,-1844.51,0.00021917,3]
[349937987,1737522642030,-688.01,0.00021917,3]
[349937988,1737522642039,-500.0,0.00021917,3]
[349937989,1737522642049,-500.0,0.00021917,3]
[349937990,1737522642059,-500.0,0.00021917,3]
[349937991,1737522642068,-500.0,0.00021917,3]
[349937992,1737522642077,-901.63,0.00021917,3]
[349937993,1737522642087,-500.0,0.00021917,3]
[349937994,1737522642096,-274.19676587,0.00021917,3]
[349937995,1737522642106,-3809.82,0.00021917,3]
[349937996,1737522642115,-500.0,0.00021917,3]
[349937997,1737522642124,-500.0,0.00021917,3]
[349937998,1737522642133,-618.49,0.00021917,3]
[349937999,1737522642143,-500.0,0.00021917,3]
[349938000,1737522642152,-1065.73,0.00021917,3]
[349938001,1737522642163,-500.0,0.00021917,3]
[349938002,1737522642172,-500.0,0.00021917,3]
[349938003,1737522642182,-500.0,0.00021917,3]
[349938004,1737522642192,-500.0,0.00021917,3]